bitfinex/quotes_SOLUSD_20260211
["timestamp","ask_amount","ask_price","bid_price","bid_amount"]
[1770814446040,0.91283857,81.259,81.229,0.91994766]
[1770814446961,0.91283857,81.259,81.231,0.92004875]
[1770814447555,0.91283857,81.259,81.239,0.92004875]
[1770814447856,13.21856196,81.263,81.241,0.92014812]
[1770814448059,0.91283857,81.262,81.241,0.92014812]
[1770814451163,0.91283857,81.262,81.23,4.19392872]
[1770814451164,0.91283857,81.262,81.243,0.92046419]
[1770814451548,0.91283857,81.26,81.243,0.92046419]
[1770814460381,0.8913553,81.272,81.243,0.92046419]
[1770814460675,30.75643308,81.284,81.245,0.92148798]
[1770814460880,30.75643308,81.284,81.251,0.92148798]
[1770814460881,0.8913553,81.283,81.251,0.92148798]
[1770814462266,0.8913553,81.282,81.251,0.92148798]
[1770814462668,0.1,81.32,81.271,0.9216524]
[1770814462880,0.8913553,81.309,81.291,0.9216524]
[1770814465279,0.1,81.32,81.293,0.92060508]
[1770814465280,0.8913553,81.314,81.293,0.92060508]
[1770814465482,0.8913553,81.309,81.292,12.30133346]
[1770814465680,0.8913553,81.309,81.288,0.92060508]
[1770814468184,0.8913553,81.309,81.29,0.91859879]
[1770814468880,0.9527376,81.309,81.291,0.91812276]
[1770814469478,0.9527376,81.314,81.291,0.91812276]
[1770814470086,0.9527376,81.319,81.301,0.91763692]
[1770814471472,0.1,81.32,81.301,0.91763692]
[1770814471685,0.9527376,81.319,81.301,0.91763692]
[1770814473273,0.9527376,81.309,81.287,0.91619491]
[1770814473580,0.9527376,81.309,81.284,58.68250915]
[1770814473781,0.9527376,81.309,81.284,46.38]
[1770814475889,0.9527376,81.307,81.284,46.38]
[1770814479592,0.9527376,81.299,81.269,0.91351308]
[1770814479985,0.9527376,81.299,81.272,12.30423787]
[1770814480185,0.9527376,81.299,81.273,0.91308238]
[1770814482888,0.9527376,81.299,81.272,12.30423787]
[1770814483090,0.9527376,81.299,81.272,13.21605647]
[1770814483300,0.9527376,81.297,81.272,13.21605647]
[1770814484480,0.9527376,81.295,81.273,0.91140836]
[1770814486599,0.9527376,81.295,81.27,4.1909345]
[1770814486600,0.9527376,81.295,81.275,0.91059875]
[1770814487794,0.9527376,81.305,81.281,0.90982339]
[1770814490005,0.9527376,81.305,81.276,12.3037551]
[1770814490006,0.1,81.31,81.291,0.90905219]
[1770814490219,0.1,81.31,81.283,0.90905219]
[1770814490521,0.94600412,81.309,81.282,46.56]
[1770814490692,0.94600412,81.309,81.272,0.88757094]
[1770814491004,0.94600412,81.309,81.27,4.1909345]
[1770814491005,0.94600412,81.308,81.273,13.19175805]
[1770814491409,0.94600412,81.308,81.276,12.30369933]
[1770814491610,0.94600412,81.308,81.279,12.30319664]
[1770814493419,0.94600412,81.306,81.275,0.88757094]
[1770814494705,0.94600412,81.306,81.281,0.88757094]
[1770814496113,0.94600412,81.309,81.283,0.88757094]
[1770814496296,0.94600412,81.309,81.272,0.88757094]
[1770814496619,0.94600412,81.308,81.272,0.88757094]
[1770814497310,0.94600412,81.306,81.272,0.88757094]
[1770814498307,0.94600412,81.306,81.273,12.30420926]
[1770814498615,0.94600412,81.306,81.274,0.88757094]
[1770814500398,0.94600412,81.304,81.274,0.88757094]
[1770814500719,0.94600412,81.289,81.256,12.30677738]
[1770814500914,0.94600412,81.289,81.259,12.30627966]
[1770814501411,0.94600412,81.289,81.266,12.30515468]
[1770814501614,0.94600412,81.289,81.264,0.88757094]
[1770814501820,0.94600412,81.289,81.266,0.88757094]
[1770814502325,0.94600412,81.289,81.265,0.88757094]
[1770814503019,0.94600412,81.296,81.271,0.88757094]
[1770814505334,0.94600412,81.296,81.272,0.88757094]
[1770814509125,0.94600412,81.302,81.274,0.88757094]
[1770814510931,0.94600412,81.302,81.276,0.88757094]
[1770814512319,53.74,81.303,81.276,0.88757094]
[1770814512827,0.94600412,81.305,81.276,0.88757094]
[1770814513026,0.94600412,81.305,81.278,0.88757094]
[1770814513230,1.04600412,81.31,81.281,0.88757094]
[1770814515732,0.1,81.31,81.291,0.88757094]
[1770814517130,1.04600412,81.31,81.283,0.88757094]
[1770814517322,0.94600412,81.309,81.283,0.88757094]
[1770814517718,0.94600412,81.309,81.284,12.30254416]
[1770814518839,0.94600412,81.309,81.285,0.88757094]
[1770814520336,0.94600412,81.309,81.286,13.1898124]
[1770814520522,0.94600412,81.309,81.287,0.89888403]
[1770814520714,0.94600412,81.309,81.286,12.30224146]
[1770814521735,0.94600412,81.309,81.287,0.89862937]
[1770814521945,0.94600412,81.309,81.291,0.89838264]
[1770814522252,0.1,81.31,81.292,12.30133346]
[1770814522424,0.96800743,81.31,81.293,0.89838264]
[1770814523348,0.96800743,81.31,81.292,12.30133346]
[1770814523722,0.96800743,81.31,81.291,0.8981476]
[1770814524040,0.1,81.31,81.291,0.8981476]
[1770814524939,0.96800743,81.31,81.291,0.8981476]
[1770814526141,0.96800743,81.31,81.292,13.19851075]
[1770814527435,0.1,81.31,81.293,0.89693464]
[1770814529240,0.1,81.31,81.294,12.30103082]
[1770814529452,0.9126952,81.309,81.284,46.9]
[1770814529622,0.9126952,81.309,81.285,12.30224647]
[1770814530024,0.9126952,81.309,81.288,12.30191689]
[1770814530233,0.9126952,81.309,81.28,12.3031202]
[1770814531249,12.29891277,81.308,81.276,12.3037551]
[1770814531443,0.9126952,81.307,81.276,12.3037551]
[1770814531946,0.9126952,81.299,81.27,0.89579002]
[1770814533149,0.9126952,81.299,81.274,0.89556831]
[1770814533652,0.9126952,81.299,81.277,0.89556831]
[1770814534634,0.9126952,81.307,81.281,0.89534773]
[1770814536039,0.9126952,81.305,81.278,12.30345234]
[1770814536236,0.9126952,81.305,81.278,13.19836715]
[1770814538357,0.9126952,81.305,81.279,0.89450678]
[1770814538851,0.9126952,81.305,81.281,0.89431353]
[1770814540644,0.1,81.31,81.283,0.8939211]
[1770814541250,1.0126952,81.31,81.283,0.8939211]
[1770814542941,1.0126952,81.31,81.285,0.89351608]
[1770814544970,0.1,81.31,81.291,0.89314392]
[1770814547155,0.1,81.31,81.292,12.30133346]
[1770814547343,0.1,81.31,81.293,0.89275697]
[1770814548038,0.1,81.31,81.292,12.30133346]
[1770814548039,0.1,81.32,81.301,0.89256276]
[1770814548547,0.1,81.32,81.311,0.89256276]
[1770814548746,0.9126952,81.319,81.292,12.30133346]
[1770814548953,0.9126952,81.319,81.293,0.89237448]
[1770814549744,0.9126952,81.317,81.294,12.30103082]
[1770814550151,0.9126952,81.317,81.295,0.89219111]
[1770814551264,0.9126952,81.317,81.294,12.30103082]
[1770814552066,0.9126952,81.317,81.295,0.86844692]
[1770814553367,0.92308778,81.315,81.291,47.1]
[1770814554048,0.92308778,81.309,81.291,47.1]
[1770814556772,12.29891277,81.308,81.291,47.96844692]
[1770814556990,0.92308778,81.307,81.291,47.1]
[1770814557776,0.92308778,81.299,81.261,0.86844692]
[1770814557952,0.92308778,81.299,81.263,12.30570431]
[1770814558874,0.92308778,81.297,81.262,12.30587482]
[1770814559785,0.92308778,81.289,81.257,12.30655392]
[1770814560364,0.92308778,81.269,81.231,0.86844692]
[1770814560688,0.92308778,81.269,81.237,0.86844692]
[1770814560864,0.92308778,81.267,81.242,0.86844692]
[1770814561262,0.92308778,81.267,81.236,0.86844692]
[1770814561586,0.92308778,81.267,81.232,12.31034113]
[1770814561966,0.92308778,81.267,81.235,13.17833138]
[1770814564967,0.92308778,81.265,81.235,13.17833138]
[1770814566497,0.92308778,81.265,81.236,0.86844692]
[1770814566988,0.92308778,81.285,81.251,0.86844692]
[1770814567189,0.92308778,81.269,81.238,0.86844692]
[1770814568177,0.92308778,81.269,81.239,13.17771141]
[1770814568372,0.92308778,81.269,81.234,12.30996521]
[1770814568694,0.92308778,81.269,81.238,0.86844692]
[1770814569098,0.92308778,81.267,81.241,0.86844692]
[1770814570692,0.92308778,81.265,81.241,0.86844692]
[1770814572205,0.92308778,81.276,81.243,0.86844692]
[1770814572976,12.30390649,81.275,81.244,12.30860125]
[1770814573177,0.92308778,81.274,81.245,0.86844692]
[1770814575197,0.92308778,81.269,81.239,0.86844692]
[1770814576410,0.92308778,81.267,81.239,0.86844692]
[1770814576588,0.92308778,81.267,81.24,12.30920728]
[1770814576790,0.92308778,81.267,81.241,0.86844692]
[1770814576994,12.30496628,81.268,81.241,0.86844692]
[1770814577394,0.92308778,81.267,81.241,0.86844692]
[1770814578293,0.92308778,81.265,81.236,0.86844692]
[1770814578697,0.92308778,81.265,81.238,12.30942999]
[1770814578902,0.92308778,81.265,81.239,0.86844692]
[1770814581399,0.92308778,81.265,81.242,0.87336479]
[1770814581584,0.91287772,81.263,81.242,0.87336479]
[1770814583803,0.91287772,81.261,81.242,0.87336479]
[1770814586612,0.91287772,81.261,81.237,0.88644295]
[1770814588215,0.94090044,81.259,81.237,0.88644295]
[1770814588711,0.94090044,81.259,81.237,13.1960675]
[1770814589306,0.94090044,81.257,81.231,0.88609013]
[1770814590119,0.94090044,81.257,81.23,12.31072221]
[1770814590497,0.94090044,81.255,81.231,0.8859758]
[1770814591814,4.65481598,81.26,81.233,0.885777]
[1770814591815,0.94090044,81.26,81.233,0.885777]
[1770814596016,0.94090044,81.26,81.235,0.88536162]
[1770814598126,0.94090044,81.26,81.236,13.19498002]
[1770814598617,0.94090044,81.26,81.237,0.88516664]
[1770814600909,0.94090044,81.26,81.239,0.88487656]
[1770814601721,0.94090044,81.26,81.238,12.30951032]
[1770814601924,0.94090044,81.26,81.238,13.1942867]
[1770814602425,0.94090044,81.26,81.239,0.88477638]
[1770814604631,0.94090044,81.26,81.24,13.19379258]
[1770814605412,0.94090044,81.26,81.241,0.88448277]
[1770814606832,0.94090044,81.268,81.243,0.88429178]
[1770814607314,0.94090044,81.267,81.239,13.19350131]
[1770814607509,0.94090044,81.267,81.24,0.88429178]
[1770814608531,0.94090044,81.259,81.229,47.38]
[1770814608731,0.94090044,81.259,81.229,59.69086771]
[1770814608930,0.94090044,81.257,81.229,59.69086771]
[1770814610140,0.94090044,81.249,81.215,0.88401377]
[1770814610318,0.94090044,81.249,81.226,12.31131102]
[1770814610844,0.94090044,81.249,81.214,0.88391985]
[1770814611032,0.87793533,81.247,81.216,0.88382395]
[1770814613637,0.87793533,81.245,81.218,0.88363285]
[1770814617026,0.87793533,81.243,81.221,0.88327143]
[1770814619527,0.87793533,81.243,81.223,0.88309637]
[1770814620137,4.66059571,81.25,81.222,12.31193518]
[1770814620138,0.87793533,81.252,81.231,0.88301093]
[1770814622256,0.87793533,81.258,81.233,0.88285867]
[1770814622429,0.87793533,81.283,81.251,0.88285867]
[1770814622624,0.87793533,81.279,81.241,0.88285867]
[1770814623337,0.87793533,81.279,81.25,4.66059571]
[1770814623531,0.87793533,81.279,81.251,0.88277381]
[1770814625853,0.87793533,81.277,81.251,0.88277381]
[1770814628760,0.87793533,81.29,81.271,0.88228712]
[1770814629457,0.87793533,81.296,81.281,0.88228712]
[1770814629753,0.87793533,81.296,81.281,0.5843684]
[1770814629954,0.87793533,81.303,81.281,0.5843684]
[1770814630653,4.66059571,81.31,81.259,47.7]
[1770814630654,0.87793533,81.301,81.271,12.30451206]
[1770814631630,0.87793533,81.299,81.27,4.66059571]
[1770814631833,0.87793533,81.289,81.264,0.58466345]
[1770814632151,0.87793533,81.289,81.268,12.30489488]
[1770814632733,13.17820962,81.299,81.269,0.58481221]
[1770814632934,0.87793533,81.298,81.269,0.58481221]
[1770814633341,0.87793533,81.298,81.271,0.58495519]
[1770814635459,0.87793533,81.296,81.272,12.88960948]
[1770814635661,0.87793533,81.296,81.273,0.58524882]
[1770814639662,0.87793533,81.294,81.273,0.58524882]
[1770814639960,0.87793533,81.294,81.273,0.09024882]
[1770814640859,12.30087951,81.295,81.273,0.09024882]
[1770814641955,0.93205857,81.295,81.273,0.09024882]
[1770814644458,0.93205857,81.293,81.273,0.09024882]
[1770814645046,0.93205857,81.293,81.263,60.00562039]
[1770814645450,0.93205857,81.293,81.266,12.30521312]
[1770814645759,0.93205857,81.293,81.27,4.75448006]
[1770814646345,0.92385947,81.291,81.27,4.75448006]
[1770814649655,0.92385947,81.289,81.27,4.75448006]
[1770814650055,0.92385947,81.289,81.27,4.66059571]
[1770814652662,0.92385947,81.289,81.272,0.09611445]
[1770814653559,0.92385947,81.306,81.281,0.0964206]
[1770814654068,0.92385947,81.305,81.271,0.09673919]
[1770814654260,0.92385947,81.305,81.272,0.09673919]
[1770814654450,0.92385947,81.305,81.28,4.66059571]
[1770814654853,0.92385947,81.303,81.28,4.66059571]
[1770814655052,0.92385947,81.303,81.28,4.75763291]
[1770814655576,0.92385947,81.303,81.28,4.66059571]
[1770814656355,0.92385947,81.303,81.281,12.30299824]
[1770814656974,0.92385947,81.303,81.282,0.09762405]
[1770814659978,0.92385947,81.303,81.29,4.66059571]
[1770814660361,0.92385947,81.303,81.287,0.0984689]
[1770814662964,0.92385947,81.303,81.29,4.66059571]
[1770814664482,0.92385947,81.311,81.291,0.09954557]
[1770814665061,0.92385947,81.319,81.3,4.76040415]
[1770814665260,0.1,81.32,81.31,4.66059571]
[1770814666955,0.1,81.32,81.31,4.65201899]
[1770814667681,1.02385947,81.32,81.302,0.10006466]
[1770814667868,1.02385947,81.32,81.3,4.75258202]
[1770814668067,1.02385947,81.32,81.3,4.65201899]
[1770814668265,1.02385947,81.32,81.301,0.10056303]
[1770814670884,1.02385947,81.32,81.301,12.40053474]
[1770814671194,1.02385947,81.32,81.302,0.10157428]
[1770814676992,1.02385947,81.32,81.301,12.29997171]
[1770814677188,12.2972491,81.319,81.3,4.65201899]
[1770814677487,0.89904256,81.318,81.29,12.30158251]
[1770814677874,0.89904256,81.318,81.29,16.9536015]
[1770814678491,0.89904256,81.318,81.293,12.30114766]
[1770814678868,0.89904256,81.318,81.293,12.40456464]
[1770814679487,12.29755155,81.317,81.293,12.40456464]
[1770814679793,0.89904256,81.316,81.293,12.40456464]
[1770814679991,0.89904256,81.316,81.293,0.10341698]
[1770814680292,0.89904256,81.316,81.29,16.95365321]
[1770814680870,0.89904256,81.316,81.29,17.0575124]
[1770814681404,0.89904256,81.314,81.285,12.30235263]
[1770814682091,0.89904256,81.314,81.288,12.30189288]
[1770814683202,0.89904256,81.312,81.282,12.30284687]
[1770814684592,0.89904256,81.312,81.29,4.65201899]
[1770814687474,0.89904256,81.312,81.283,0.10447645]
[1770814688499,0.89904256,81.312,81.282,12.30284687]
[1770814688500,0.89904256,81.312,81.29,4.65201899]
[1770814690993,0.89904256,81.312,81.29,4.75786424]
[1770814691299,0.89904256,81.31,81.29,4.65201899]
[1770814692500,0.89904256,81.31,81.288,12.30189143]
[1770814693704,0.89904256,81.31,81.291,12.30148478]
[1770814694487,0.89904256,81.31,81.29,4.65201899]
[1770814695400,0.89904256,81.31,81.29,4.75861317]
[1770814695889,0.89904256,81.308,81.288,12.30192297]
[1770814696092,0.89904256,81.308,81.284,12.30249892]
[1770814696482,0.89904256,81.308,81.287,12.30206438]
[1770814697215,0.89904256,81.308,81.277,12.30351411]
[1770814697582,0.89904256,81.308,81.28,4.65201899]
[1770814698002,0.89904256,81.306,81.281,0.10713569]
[1770814700409,0.95251379,81.304,81.281,0.10713569]
[1770814702613,0.95251379,81.302,81.281,0.10713569]
[1770814704308,30.74690378,81.309,81.28,4.65201899]
[1770814704309,0.95251379,81.3,81.28,4.65201899]
[1770814707219,0.91018452,81.298,81.28,4.65201899]
[1770814707403,0.91018452,81.298,81.267,48.18]
[1770814709295,12.30057689,81.297,81.267,48.18]
[1770814709494,0.91018452,81.296,81.267,48.18]
[1770814710413,0.91018452,81.294,81.261,12.30602626]
[1770814711210,0.91018452,81.294,81.261,12.37044048]
[1770814711411,0.91018452,81.294,81.262,0.06441422]
[1770814712829,0.91018452,81.292,81.262,0.06441422]
[1770814719733,0.91018452,81.29,81.27,4.65201899]
[1770814720019,0.91018452,81.29,81.266,0.03303193]
[1770814720219,0.91018452,81.29,81.261,0.02930841]
[1770814722708,0.91018452,81.288,81.26,4.65201899]
[1770814725031,12.30209012,81.287,81.26,4.65201899]
[1770814725337,0.91018452,81.286,81.26,4.65201899]
[1770814726431,0.91018452,81.286,81.25,4.65201899]
[1770814726639,0.91018452,81.269,81.23,4.65201899]
[1770814726811,0.91018452,81.269,81.233,12.31025721]
[1770814727129,0.91018452,81.259,81.22,4.66102509]
[1770814727855,0.91018452,81.249,81.217,12.31258156]
[1770814728140,0.91018452,81.229,81.191,12.31663608]
[1770814728435,0.91018452,81.229,81.2,4.66102509]
[1770814728614,0.91018452,81.229,81.191,12.31663608]
[1770814728929,0.91018452,81.229,81.2,4.66102509]
[1770814729311,0.91018452,81.227,81.2,4.66102509]
[1770814730337,0.89904256,81.225,81.201,12.31511927]
[1770814730534,0.89904256,81.235,81.21,4.66102509]
[1770814730918,0.89904256,81.235,81.201,43.10291744]
[1770814732923,12.31005075,81.235,81.21,4.66102509]
[1770814733125,13.20835811,81.24,81.21,4.66102509]
[1770814733323,0.89904256,81.239,81.21,4.66102509]
[1770814734936,0.89904256,81.237,81.21,4.66102509]
[1770814736939,0.89904256,81.237,81.2,4.66102509]
[1770814737645,0.89904256,81.235,81.21,4.66102509]
[1770814740642,0.89904256,81.248,81.22,4.66102509]
[1770814741447,0.89904256,81.248,81.211,43.09760992]
[1770814742545,0.89904256,81.246,81.211,43.09760992]
[1770814745349,0.89904256,81.244,81.211,43.09760992]
[1770814749650,0.89904256,81.242,81.211,43.09760992]
[1770814756757,0.89904256,81.239,81.211,12.31360283]
[1770814758949,0.89904256,81.238,81.211,12.31360283]
[1770814760349,12.30892398,81.242,81.209,79.36465994]
[1770814760350,0.89904256,81.241,81.221,12.31208677]
[1770814765749,0.89904256,81.249,81.23,4.66102509]
[1770814766068,0.89904256,81.249,81.221,43.0923037]
[1770814772270,0.89904256,81.249,81.209,48.58]
[1770814772271,0.89904256,81.249,81.23,4.66102509]
[1770814775471,0.89904256,81.249,81.229,12.310747]
[1770814778968,0.89904256,81.249,81.209,48.58]
[1770814778969,0.89904256,81.249,81.23,4.66102509]
[1770814783873,0.89904256,81.249,81.231,12.31057108]
[1770814788571,54.34,81.268,81.231,12.31057108]
[1770814788572,0.89904256,81.254,81.231,12.31057108]
[1770814788764,54.34,81.268,81.231,12.31057108]
[1770814788765,0.89904256,81.266,81.24,4.66102509]
[1770814788956,0.89904256,81.266,81.24,4.65970645]
[1770814789156,0.89904256,81.264,81.24,16.96886647]
[1770814791885,0.89904256,81.264,81.25,4.65970645]
[1770814796176,54.72,81.274,81.251,12.30754083]
[1770814796475,12.3036532,81.277,81.251,12.30754083]
[1770814796476,0.89904256,81.273,81.251,12.30754083]
[1770814797570,0.89904256,81.273,81.26,4.65970645]
[1770814799184,0.89904256,81.286,81.261,12.30602626]
[1770814800497,0.89904256,81.284,81.252,12.30730581]
[1770814800796,0.89904256,81.284,81.25,4.65970645]
[1770814800977,0.89904256,81.284,81.258,12.30638613]
[1770814801660,12.30239281,81.285,81.24,53.63970645]
[1770814801661,0.89904256,81.279,81.24,53.63970645]
[1770814801862,0.89904256,81.269,81.24,53.63970645]
[1770814802062,0.89904256,81.297,81.261,12.30602626]
[1770814802370,0.89904256,81.301,81.29,4.65970645]
[1770814802573,0.1,81.32,81.291,12.30148478]
[1770814802771,0.1,81.32,81.291,43.05465517]
[1770814802974,0.89904256,81.319,81.3,4.65970645]
[1770814803667,0.89904256,81.319,81.291,12.3009432]
[1770814803879,0.89904256,81.318,81.3,4.65970645]
[1770814804177,0.89904256,81.309,81.235,49.23967648]
[1770814804378,0.89904256,81.299,81.266,12.30524437]
[1770814804582,0.89904256,81.297,81.261,12.30602626]
[1770814805786,0.89904256,81.297,81.27,4.65970645]
[1770814806089,0.89904256,81.297,81.26,4.65970645]
[1770814806266,0.89904256,81.289,81.257,12.30660291]
[1770814806461,12.30193878,81.288,81.251,12.30754083]
[1770814806661,0.89904256,81.287,81.251,12.30754083]
[1770814807679,0.89904256,81.285,81.251,12.30754083]
[1770814807987,0.89904256,81.285,81.26,4.65970645]
[1770814808988,0.89904256,81.283,81.26,4.65970645]
[1770814809481,0.89904256,81.283,81.258,12.30643905]
[1770814809662,0.89904256,81.279,81.25,49.0]
[1770814813585,0.89904256,81.277,81.25,49.0]
[1770814816574,0.89904256,81.275,81.25,49.0]
[1770814817076,12.3037551,81.276,81.251,12.30754083]
[1770814817276,0.89904256,81.275,81.251,12.30754083]
[1770814817492,0.89904256,81.289,81.26,4.65970645]
[1770814817799,0.89904256,81.289,81.251,12.30754083]
[1770814818100,0.89904256,81.289,81.252,49.06]
[1770814818295,0.89904256,81.285,81.252,49.06]
[1770814819398,0.89904256,81.283,81.253,12.30723788]
[1770814820896,0.89904256,81.289,81.26,4.65970645]
[1770814821098,0.89904256,81.289,81.253,43.07533259]
[1770814821599,0.89904256,81.288,81.26,4.65970645]
[1770814821780,0.89904256,81.292,81.27,4.65970645]
[1770814823002,0.89904256,81.291,81.26,4.65970645]
[1770814823399,0.89904256,81.289,81.261,12.30602626]
[1770814826191,0.89904256,81.294,81.27,4.65970645]
[1770814826397,0.89904256,81.294,81.261,43.07109191]
[1770814827106,0.89904256,81.294,81.261,12.30602626]
[1770814827894,0.89904256,81.292,81.261,12.30602626]
[1770814830403,0.89904256,81.29,81.261,12.30602626]
[1770814833293,30.74904342,81.304,81.27,4.65970645]
[1770814833294,13.20001061,81.295,81.27,4.65970645]
[1770814833613,54.66,81.313,81.28,4.65970645]
[1770814833614,0.89904256,81.307,81.28,4.65970645]
[1770814836904,0.89904256,81.305,81.28,4.65970645]
[1770814838412,0.89904256,81.299,81.271,49.14]
[1770814838590,0.89904256,81.299,81.272,12.30436066]
[1770814838993,0.89904256,81.299,81.28,4.65970645]
[1770814840900,12.30005074,81.301,81.28,4.65970645]
[1770814841800,0.89904256,81.301,81.28,4.65970645]
[1770814842319,0.89904256,81.301,81.272,12.3042505]
[1770814842508,0.89904256,81.301,81.275,12.30384802]
[1770814843919,0.89904256,81.3,81.272,12.30436066]
[1770814844824,0.89904256,81.3,81.28,4.65970645]
[1770814848909,0.89904256,81.3,81.28,4.65549443]
[1770814850620,0.89904256,81.3,81.28,16.95863041]
[1770814852225,0.89904256,81.304,81.29,4.65549443]
[1770814852527,0.89904256,81.318,81.29,4.65549443]
[1770814854223,12.29755155,81.317,81.29,4.65549443]
[1770814854523,0.89904256,81.316,81.29,4.65549443]
[1770814856528,0.89904256,81.314,81.291,12.30148478]
[1770814856822,0.89904256,81.314,81.3,4.65549443]
[1770814857407,0.89904256,81.314,81.291,12.30148478]
[1770814857728,0.89904256,81.314,81.3,4.65549443]
[1770814859022,12.39716344,81.32,81.3,4.65549443]
[1770814859023,0.89904256,81.319,81.3,4.65549443]
[1770814859248,0.89904256,81.327,81.31,4.65549443]
[1770814859544,0.1,81.33,81.31,4.65549443]
[1770814859733,0.99904256,81.33,81.31,4.65549443]
[1770814860337,0.99904256,81.33,81.311,12.298459]
[1770814860543,0.99904256,81.33,81.32,4.65549443]
[1770814860743,0.99904256,81.33,81.31,4.65549443]
[1770814860946,0.99904256,81.33,81.31,16.95407892]
[1770814861140,0.99904256,81.33,81.32,4.65549443]
[1770814861641,12.39563093,81.33,81.306,12.29916873]
[1770814861840,0.89904256,81.345,81.32,4.65549443]
[1770814862138,0.89904256,81.345,81.33,4.65549443]
[1770814862336,0.89904256,81.344,81.33,4.65549443]
[1770814865142,13.1926634,81.343,81.33,4.65549443]
[1770814865450,0.89904256,81.346,81.33,4.65549443]
[1770814865947,0.89904256,81.346,81.32,4.65549443]
[1770814866144,0.89904256,81.346,81.33,4.65549443]
[1770814866346,0.89904256,81.346,81.331,12.2954347]
[1770814868544,0.1,81.35,81.331,43.03402146]
[1770814868730,0.1,81.35,81.34,4.65549443]
[1770814870248,12.28833345,81.378,81.342,0.45581837]
[1770814870474,12.28833345,81.378,81.351,0.45581837]
[1770814871543,0.1,81.38,81.351,0.45581837]
[1770814871930,0.1,81.38,81.341,92.30873089]
[1770814871931,12.28818245,81.379,81.342,0.4542453]
[1770814872132,12.28818245,81.379,81.341,61.57392311]
[1770814872133,0.65118419,81.378,81.344,0.4542453]
[1770814872357,0.65118419,81.378,81.351,0.4542453]
[1770814874752,0.65118419,81.376,81.351,0.4542453]
[1770814874955,0.65118419,81.376,81.346,12.29305945]
[1770814875170,0.65118419,81.359,81.33,49.3]
[1770814875340,0.65118419,81.359,81.318,49.3]
[1770814875540,0.65118419,81.359,81.316,0.45196946]
[1770814875740,54.8,81.375,81.313,49.3]
[1770814875741,0.65118419,81.349,81.313,49.3]
[1770814875939,0.65118419,81.349,81.317,12.29755155]
[1770814876854,0.65118419,81.347,81.312,12.74953269]
[1770814877463,0.65118419,81.347,81.313,0.45049821]
[1770814878844,0.65118419,81.345,81.314,12.74777438]
[1770814879455,0.65118419,81.345,81.314,12.74704835]
[1770814879657,0.65118419,81.345,81.315,0.44904309]
[1770814882868,0.61813095,81.343,81.318,12.29740032]
[1770814883467,0.61813095,81.341,81.312,0.44406176]
[1770814886252,0.61813095,81.341,81.314,0.43563446]
[1770814887347,0.61813095,81.341,81.316,0.43358769]
[1770814888384,0.61813095,81.341,81.318,0.43156262]
[1770814890768,0.61813095,81.341,81.319,12.2972491]
[1770814892475,0.61813095,81.341,81.319,0.4236918]
[1770814893456,0.61813095,81.341,81.32,0.42178059]
[1770814893955,0.61813095,81.341,81.321,0.41990113]
[1770814894152,0.61813095,81.341,81.32,5.07539556]
[1770814894474,0.61813095,81.341,81.321,0.41990113]
[1770814895469,12.29356206,81.344,81.323,0.41803393]
[1770814896569,12.29286522,81.348,81.323,0.41803393]
[1770814896757,12.96083582,81.348,81.323,0.41803393]
[1770814896958,0.6679706,81.347,81.323,0.41803393]
[1770814899371,12.29286522,81.348,81.314,30.74468794]
[1770814899372,0.6679706,81.345,81.314,12.29788371]
[1770814899675,0.6679706,81.345,81.317,12.29748169]
[1770814901361,0.6679706,81.343,81.317,12.29748169]
[1770814903168,0.6679706,81.343,81.317,12.70131456]
[1770814903367,12.29377197,81.342,81.32,4.65549443]
[1770814903578,0.6679706,81.341,81.32,4.65549443]
[1770814904376,0.6679706,81.341,81.321,12.29694666]
[1770814905263,0.6679706,81.341,81.32,4.65549443]
[1770814906781,0.6679706,81.341,81.317,12.70127926]
[1770814906982,0.6679706,81.341,81.318,0.39720816]
[1770814908983,0.6679706,81.341,81.319,12.2972491]
[1770814909281,0.6679706,81.341,81.32,0.39402168]
[1770814911582,0.6679706,81.341,81.322,0.38936508]
[1770814912576,0.6679706,81.341,81.321,12.29694666]
[1770814912772,0.61711845,81.34,81.317,12.2974605]
[1770814913582,0.61711845,81.34,81.317,12.68381114]
[1770814915284,0.61711845,81.329,81.301,12.29997171]
[1770814916687,0.61711845,81.319,81.297,49.52]
[1770814916985,12.29588825,81.328,81.29,12.3014869]
[1770814916986,0.61711845,81.309,81.29,12.3014869]
[1770814919178,0.61711845,81.309,81.287,0.37773868]
[1770814919384,0.61711845,81.307,81.28,0.37773868]
[1770814919695,0.61711845,81.307,81.247,5.13032502]
[1770814919696,0.61711845,81.299,81.277,12.30356204]
[1770814919988,0.61711845,81.289,81.264,0.37635869]
[1770814920485,43.04576984,81.309,81.263,49.56]
[1770814920486,0.61711845,81.279,81.263,49.56]
[1770814920686,0.61711845,81.279,81.257,12.3065465]
[1770814921188,0.61711845,81.269,81.248,12.30799527]
[1770814921668,0.61711845,81.269,81.248,12.68299185]
[1770814921869,0.61711845,81.269,81.249,0.37499658]
[1770814922777,0.61711845,81.269,81.248,12.30799527]
[1770814922778,0.61711845,81.293,81.251,0.37364935]